bitfinex/quotes_SOLUSD_20250821
["timestamp","ask_amount","ask_price","bid_price","bid_amount"]
[1755789003662,0.06,184.68,184.66,70.04]
[1755789003862,0.06,184.68,184.67,7.27327464]
[1755789004336,0.76,184.68,184.66,77.31327464]
[1755789004533,0.7,184.67,184.66,70.04]
[1755789004760,0.7,184.67,184.66,77.31327464]
[1755789005079,0.7,184.67,184.63,26.0]
[1755789005366,7.27327464,184.64,184.6,7.473275]
[1755789005557,0.7,184.63,184.61,44.04]
[1755789005746,0.7,184.62,184.61,44.04]
[1755789006265,7.97327464,184.62,184.61,44.04]
[1755789007381,7.97327464,184.62,184.46,13.58268784]
[1755789007545,7.97327464,184.62,184.53,7.27327464]
[1755789007546,7.27327464,184.57,184.53,7.27327464]
[1755789007739,26.0,184.62,184.54,44.04]
[1755789007935,7.97327464,184.6,184.54,44.04]
[1755789008183,7.97327464,184.6,184.55,7.27327464]
[1755789008461,7.27327464,184.58,184.56,44.04]
[1755789008665,7.27327464,184.58,184.5,13.59559401]
[1755789008666,7.97327464,184.57,184.5,7.27327464]
[1755789008865,7.27327464,184.55,184.51,51.29327464]
[1755789009071,0.7,184.54,184.51,44.02]
[1755789009266,0.7,184.54,184.51,51.29327464]
[1755789009490,26.06,184.63,184.51,51.29327464]
[1755789009491,7.97327464,184.57,184.52,7.27327464]
[1755789009775,7.27327464,184.56,184.53,44.02]
[1755789009975,7.97327464,184.55,184.53,44.02]
[1755789010159,0.7,184.55,184.53,44.02]
[1755789010362,7.27327464,184.57,184.53,44.02]
[1755789010544,0.7,184.56,184.53,44.02]
[1755789012581,0.7,184.56,184.53,51.29327464]
[1755789013359,0.7,184.56,184.53,44.02]
[1755789013955,0.7,184.55,184.53,44.02]
[1755789014753,0.76,184.59,184.54,7.27327464]
[1755789014959,0.76,184.59,184.56,7.27327464]
[1755789014960,0.7,184.58,184.56,7.27327464]
[1755789015259,0.7,184.58,184.57,44.04]
[1755789016480,7.97327464,184.58,184.57,44.04]
[1755789016664,7.97327464,184.58,184.55,44.04]
[1755789016866,0.69,184.57,184.55,44.04]
[1755789018001,8.02327464,184.59,184.55,44.04]
[1755789018283,0.69,184.58,184.55,44.04]
[1755789018486,0.69,184.57,184.55,44.04]
[1755789018656,7.27327464,184.58,184.55,44.04]
[1755789018657,0.69,184.56,184.55,44.04]
[1755789019273,7.96327464,184.56,184.51,0.03]
[1755789019473,7.96327464,184.55,184.53,44.04]
[1755789019682,0.69,184.54,184.53,44.04]
[1755789019853,7.96327464,184.56,184.53,44.04]
[1755789020058,0.06,184.59,184.53,44.04]
[1755789020257,0.69,184.55,184.53,44.04]
[1755789020695,7.27327464,184.57,184.53,51.31327464]
[1755789020888,0.69,184.58,184.55,7.27327464]
[1755789021089,0.69,184.57,184.53,7.27327464]
[1755789021272,7.27327464,184.58,184.54,44.02]
[1755789021473,0.06,184.59,184.54,44.02]
[1755789021474,0.69,184.56,184.54,44.02]
[1755789022558,0.06,184.59,184.55,7.27327464]
[1755789022754,0.75,184.59,184.55,7.27327464]
[1755789022965,0.69,184.58,184.55,7.27327464]
[1755789023389,7.33327464,184.59,184.54,44.02]
[1755789023682,7.96327464,184.58,184.54,44.02]
[1755789023888,0.69,184.57,184.54,44.02]
[1755789024088,7.96327464,184.57,184.54,44.02]
[1755789024895,0.69,184.56,184.54,44.02]
[1755789025192,0.06,184.59,184.53,7.30327464]
[1755789025193,7.96327464,184.55,184.53,0.03]
[1755789025393,0.69,184.54,184.53,0.03]
[1755789025571,7.27327464,184.52,184.51,0.03]
[1755789025772,26.0,184.48,184.46,0.03]
[1755789025975,26.0,184.48,184.43,0.03]
[1755789025976,39.59559401,184.44,184.36,0.03]
[1755789026181,7.27327464,184.37,184.36,0.03]
[1755789026377,39.59559401,184.31,184.19,0.03]
[1755789026585,7.27327464,184.3,184.22,0.69]
[1755789026763,21.31886865,184.3,184.29,0.01]
[1755789026966,39.59559401,184.26,184.19,0.03]
[1755789027172,7.27327464,184.2,184.19,0.03]
[1755789027496,7.27327464,184.21,184.19,0.03]
[1755789027663,47.22886865,184.2,184.19,0.03]
[1755789028391,33.27327464,184.2,184.19,0.03]
[1755789028601,7.27327464,184.2,184.19,0.03]
[1755789028763,7.27327464,184.22,184.19,0.03]
[1755789028966,9.44973064,184.36,184.19,0.03]
[1755789028967,7.27327464,184.23,184.19,0.03]
[1755789029183,39.59559401,184.28,184.19,0.72]
[1755789029409,7.27327464,184.26,184.21,7.27327464]
[1755789029695,7.27327464,184.29,184.24,7.27327464]
[1755789030066,7.27327464,184.29,184.24,7.96327464]
[1755789030265,7.27327464,184.31,184.26,7.27327464]
[1755789030493,7.27327464,184.33,184.28,7.27327464]
[1755789030794,7.27327464,184.35,184.3,7.27327464]
[1755789030994,7.27327464,184.34,184.29,7.96327464]
[1755789031193,0.36,184.37,184.3,0.69]
[1755789031585,7.27327464,184.34,184.3,0.69]
[1755789031890,7.27327464,184.32,184.26,71.35]
[1755789032096,7.27327464,184.32,184.27,7.27327464]
[1755789032298,7.27327464,184.33,184.27,7.96327464]
[1755789032463,7.27327464,184.33,184.27,0.69]
[1755789032664,7.27327464,184.33,184.28,7.27327464]
[1755789033270,7.27327464,184.33,184.28,7.96327464]
[1755789033866,0.36,184.37,184.3,7.27327464]
[1755789033867,7.27327464,184.35,184.3,7.27327464]
[1755789034276,7.27327464,184.34,184.28,0.69]
[1755789034478,7.27327464,184.33,184.29,7.27327464]
[1755789034873,7.27327464,184.34,184.29,7.27327464]
[1755789035088,0.06,184.36,184.29,7.96327464]
[1755789035399,0.06,184.36,184.23,13.59926322]
[1755789035400,7.27327464,184.3,184.23,0.72]
[1755789035600,7.33327464,184.36,184.19,0.03]
[1755789035601,13.59559401,184.23,184.19,0.03]
[1755789035771,39.59559401,184.18,184.17,0.03]
[1755789035973,13.59559401,184.17,184.06,0.69]
[1755789036209,33.27327464,184.18,184.07,0.69]
[1755789036210,20.86886865,184.16,184.07,0.69]
[1755789036506,7.44327464,184.16,184.07,6.12271091]
[1755789036719,7.44327464,184.16,184.0,39.08]
[1755789036999,13.59559401,184.12,184.04,7.96327464]
[1755789037303,7.27327464,184.09,184.01,0.69]
[1755789038677,11.13612337,184.15,184.1,11.82612337]
[1755789038881,11.13612337,184.15,184.1,0.69]
[1755789039083,11.13612337,184.15,184.11,0.69]
[1755789039601,11.13612337,184.14,184.09,11.13612337]
[1755789040208,11.13612337,184.13,184.08,11.13612337]
[1755789040424,11.13612337,184.14,184.09,11.13612337]
[1755789040623,11.13612337,184.15,184.1,11.82612337]
[1755789040781,11.13612337,184.17,184.12,11.13612337]
[1755789041101,11.13612337,184.18,184.13,11.82612337]
[1755789041303,11.13612337,184.18,184.14,0.69]
[1755789041508,11.13612337,184.17,183.96,27.35809905]
[1755789041679,11.13612337,184.13,184.07,0.69]
[1755789042004,13.59559401,184.14,184.06,0.69]
[1755789042187,11.13612337,184.11,184.07,11.13612337]
[1755789042376,11.13612337,184.13,184.08,11.82612337]
[1755789042576,11.13612337,184.13,184.09,0.69]
[1755789042995,11.13612337,184.14,184.09,11.13612337]
[1755789043228,11.13612337,184.14,184.1,0.69]
[1755789043402,0.14,184.23,184.12,11.13612337]
[1755789043716,11.13612337,184.19,184.15,11.13612337]
[1755789043922,11.13612337,184.18,184.13,0.69]
[1755789044078,11.13612337,184.18,184.13,11.82612337]
[1755789044480,11.13612337,184.19,184.14,11.82612337]
[1755789044710,11.13612337,184.18,184.14,11.82612337]
[1755789045014,0.14,184.23,184.14,11.82612337]
[1755789045228,11.13612337,184.18,184.14,11.82612337]
[1755789045723,26.0,184.22,184.14,11.82612337]
[1755789045724,11.13612337,184.19,184.14,11.82612337]
[1755789046409,11.13612337,184.18,184.14,0.69]
[1755789046585,11.13612337,184.18,184.14,11.82612337]
[1755789046786,13.59559401,184.21,184.14,11.82612337]
[1755789047006,11.13612337,184.19,184.14,11.82612337]
[1755789047201,4.47023364,184.3,184.16,11.13612337]
[1755789047409,11.13612337,184.23,184.16,0.7]
[1755789047717,0.14,184.31,184.22,11.13612337]
[1755789048034,2.89908412,184.34,184.26,11.13612337]
[1755789048249,2.89908412,184.34,184.2,26.0]
[1755789048250,0.2,184.32,184.2,26.0]
[1755789048525,11.13612337,184.21,184.14,0.7]
[1755789048690,11.13612337,184.21,184.09,19.01243956]
[1755789048691,26.0,184.19,184.09,19.01243956]
[1755789048896,11.13612337,184.12,184.08,0.03]
[1755789049518,26.0,184.15,184.08,0.03]
[1755789049815,11.13612337,184.15,184.09,0.7]
[1755789050016,26.0,184.17,184.1,0.03]
[1755789050017,39.59559401,184.11,184.1,0.03]
[1755789050212,39.59559401,184.17,184.1,0.03]
[1755789050516,0.14,184.16,184.1,0.03]
[1755789050911,0.14,184.16,184.08,0.03]
[1755789051221,13.59559401,184.17,184.08,11.16612337]
[1755789051401,11.13612337,184.16,184.1,11.13612337]
[1755789051599,11.13612337,184.17,184.12,11.13612337]
[1755789051793,26.0,184.2,184.13,0.7]
[1755789051991,13.59559401,184.19,184.13,0.7]
[1755789052191,11.13612337,184.16,184.11,11.13612337]
[1755789052495,11.13612337,184.16,184.12,0.7]
[1755789052911,11.13612337,184.16,184.13,0.7]
[1755789053192,11.13612337,184.18,184.13,11.83612337]
[1755789053412,11.19612337,184.23,184.17,11.13612337]
[1755789053596,11.19612337,184.23,184.18,11.13612337]
[1755789053800,0.06,184.23,184.19,11.13612337]
[1755789054090,13.65559401,184.23,184.19,11.83612337]
[1755789054289,24.79171738,184.23,184.16,0.7]
[1755789054491,24.79171738,184.23,184.17,11.13612337]
[1755789054914,24.79171738,184.23,184.12,0.7]
[1755789054915,11.13612337,184.18,184.12,0.7]
[1755789055110,11.13612337,184.18,184.13,11.13612337]
[1755789055420,11.13612337,184.19,184.14,11.13612337]
[1755789055621,11.13612337,184.2,184.15,11.83612337]
[1755789055917,11.13612337,184.19,184.11,0.7]
[1755789056101,11.13612337,184.19,184.14,11.13612337]
[1755789056307,11.13612337,184.2,184.15,11.13612337]
[1755789056508,11.13612337,184.19,184.12,0.7]
[1755789057010,11.13612337,184.19,184.14,11.13612337]
[1755789057323,11.13612337,184.19,184.14,11.83612337]
[1755789058401,11.13612337,184.19,184.14,11.13612337]
[1755789058604,11.13612337,184.17,184.12,11.13612337]
[1755789058791,11.13612337,184.16,184.11,0.7]
[1755789058991,11.13612337,184.14,184.08,45.33]
[1755789059220,26.0,184.15,184.08,45.33]
[1755789059415,11.13612337,184.1,184.08,0.03]
[1755789059697,11.13612337,184.11,184.08,0.03]
[1755789060093,11.13612337,184.12,184.08,0.03]
[1755789060520,16.338534,184.2,184.08,11.16612337]
[1755789060820,11.13612337,184.15,184.09,0.7]
[1755789060991,11.13612337,184.15,184.1,11.13612337]
[1755789061196,11.13612337,184.14,184.09,11.83612337]
[1755789061807,11.13612337,184.1,184.08,0.03]
[1755789062050,11.13612337,184.1,183.9,10.0]
[1755789062051,13.59559401,184.05,183.99,0.7]
[1755789062341,13.59559401,183.97,183.92,0.7]
[1755789062635,11.13612337,183.96,183.92,0.7]
[1755789062838,11.13612337,183.95,183.91,0.1]
[1755789063132,24.73171738,183.92,183.91,0.1]
[1755789063297,13.59559401,183.92,183.91,0.1]
[1755789063501,24.81171738,183.92,183.91,0.1]
[1755789063697,24.81171738,183.92,183.91,0.02]
[1755789064119,13.59559401,183.85,183.77,0.7]
[1755789064306,11.13612337,183.95,183.77,0.7]
[1755789064307,2.84193807,184.0,183.77,0.7]
[1755789064506,13.59559401,183.97,183.85,11.13612337]
[1755789064713,26.0,183.91,183.87,11.13612337]
[1755789064918,13.59559401,183.91,183.87,11.13612337]
[1755789065125,13.59559401,183.91,183.87,11.83612337]
[1755789065323,26.0,183.96,183.89,11.13612337]
[1755789065324,13.59559401,183.95,183.89,11.13612337]
[1755789065507,13.59559401,183.95,183.91,11.13612337]
[1755789065823,37.13612337,183.96,183.92,0.7]
[1755789065824,13.59559401,183.96,183.92,0.7]
[1755789066026,11.13612337,183.93,183.88,11.13612337]
[1755789066338,37.13612337,183.96,183.91,11.13612337]
[1755789066637,26.0,183.95,183.91,11.83612337]
[1755789067113,37.13612337,183.95,183.9,11.13612337]
[1755789067318,37.13612337,183.95,183.82,11.13612337]
[1755789067319,24.73171738,183.94,183.82,11.13612337]
[1755789067641,11.13612337,183.91,183.86,0.7]
[1755789067807,11.13612337,183.92,183.87,11.13612337]
[1755789068134,11.13612337,183.92,183.78,58.96309568]
[1755789068135,37.13612337,183.94,183.88,11.83612337]
[1755789068338,11.13612337,183.91,183.83,0.7]
[1755789068543,11.13612337,183.87,183.79,0.7]
[1755789068714,11.13612337,183.86,183.8,11.13612337]
[1755789069036,11.13612337,183.89,183.84,11.13612337]
[1755789069246,11.13612337,183.89,183.84,11.83612337]
[1755789069444,11.13612337,183.89,183.85,0.7]
[1755789069644,11.13612337,183.88,183.83,11.13612337]
[1755789069847,11.13612337,183.88,183.83,0.7]
[1755789070142,11.13612337,183.89,183.84,11.83612337]
[1755789070317,37.13612337,183.9,183.85,11.13612337]
[1755789070510,37.13612337,183.9,183.79,5.44086467]
[1755789070511,13.59559401,183.93,183.87,11.13612337]
[1755789070716,11.13612337,183.92,183.87,11.13612337]
[1755789071028,11.13612337,183.9,183.85,11.13612337]
[1755789071243,13.59559401,183.93,183.78,26.0]
[1755789071543,11.136124,183.95,183.87,11.13612337]
[1755789071717,37.13612337,183.91,183.86,11.13612337]
[1755789071915,11.13612337,183.9,183.85,11.83612337]
[1755789072514,11.13612337,183.89,183.83,0.7]
[1755789072720,26.0,183.91,183.83,0.7]
[1755789072935,11.13612337,183.89,183.84,11.13612337]
[1755789073143,11.13612337,183.89,183.84,0.7]
[1755789073366,26.0,183.91,183.84,11.83612337]
[1755789073570,26.0,183.91,183.79,5.44099243]
[1755789073571,16.358134,183.96,183.85,0.7]
[1755789073736,13.59559401,184.03,183.85,80.5]
[1755789074057,12.84161585,184.04,183.9,11.13612337]
[1755789074058,11.13612337,183.95,183.9,11.13612337]
[1755789074237,13.59559401,183.99,183.91,11.13612337]
[1755789074561,11.13612337,183.96,183.91,11.13612337]
[1755789074856,11.13612337,183.92,183.84,0.7]
[1755789075045,11.13612337,183.9,183.85,11.13612337]
[1755789075356,11.13612337,183.9,183.85,37.83612337]
[1755789075734,11.13612337,183.88,183.84,11.16612337]
[1755789075935,13.59559401,183.96,183.84,0.03]
[1755789076135,3.90246398,183.95,183.84,0.73]
[1755789076330,11.13612337,183.9,183.84,0.73]
[1755789076540,11.13612337,183.9,183.85,11.13612337]
[1755789076739,13.59559401,183.96,183.84,0.03]
[1755789076740,13.59559401,183.94,183.84,0.03]
[1755789077053,11.13612337,183.88,183.84,0.03]
[1755789077443,11.13612337,183.86,183.84,0.03]
[1755789077829,11.13612337,183.85,183.84,0.03]
[1755789081164,24.73171738,183.85,183.84,0.03]
[1755789081358,13.59559401,183.85,183.84,0.03]
[1755789081557,24.73171738,183.85,183.84,0.03]
[1755789081961,50.73171738,183.85,183.84,0.03]
[1755789082971,24.73171738,183.85,183.84,0.03]
[1755789083850,28.62602391,183.85,183.84,0.03]
[1755789084261,73.80602391,183.85,183.84,0.03]
[1755789085265,39.59559401,183.82,183.8,0.03]
[1755789085467,50.73171738,183.81,183.8,0.03]
[1755789085667,54.62138963,183.81,183.8,0.03]
[1755789086469,43.48526626,183.81,183.8,0.03]
[1755789086667,11.13612337,183.82,183.8,0.03]
[1755789086977,13.59559401,183.9,183.81,11.13612337]
[1755789087167,11.13612337,183.84,183.8,0.69]
[1755789087367,11.13612337,183.84,183.8,0.03]
[1755789087580,24.73171738,183.86,183.81,11.79612337]
[1755789087885,24.73171738,183.88,183.84,11.13612337]
[1755789088055,39.59559401,183.88,183.83,11.13612337]
[1755789088255,29.96086701,183.88,183.84,0.66]
[1755789088456,24.73171738,183.88,183.84,0.66]
[1755789088668,26.0,183.86,183.84,0.66]
[1755789088863,24.73171738,183.85,183.8,0.69]
[1755789089074,26.0,183.86,183.82,11.13612337]
[1755789089369,11.13612337,183.9,183.85,11.13612337]
[1755789089570,11.13612337,183.9,183.86,0.66]
[1755789089779,11.13612337,183.9,183.87,0.66]
[1755789089987,11.13612337,183.88,183.82,0.66]
[1755789090177,11.13612337,183.86,183.82,11.79612337]
[1755789090373,37.13612337,183.89,183.84,11.13612337]
[1755789090687,37.13612337,183.89,183.85,0.66]
[1755789090864,11.13612337,183.9,183.85,11.79612337]
[1755789091184,29.88803283,183.89,183.86,0.66]
[1755789091486,37.13612337,183.89,183.84,11.13612337]
[1755789091685,26.0,183.89,183.86,11.13612337]
[1755789091867,13.59559401,183.92,183.87,11.79612337]
[1755789092207,11.13612337,183.88,183.81,0.66]
[1755789092374,11.13612337,183.85,183.81,0.66]
[1755789092562,11.13612337,183.86,183.81,11.79612337]
[1755789092762,3.89181464,183.85,183.82,11.79612337]
[1755789092966,11.13612337,183.87,183.83,0.66]
[1755789093268,3.89278572,183.86,183.84,0.69]
[1755789093479,3.89278572,183.85,183.84,0.69]
[1755789093671,3.89278572,183.85,183.84,0.03]
[1755789093901,15.02890909,183.85,183.84,0.03]
[1755789094399,28.6245031,183.85,183.84,0.03]
[1755789094900,3.89278572,183.85,183.84,0.69]
[1755789095196,45.18,183.9,183.84,0.69]
[1755789095367,15.03775904,183.89,183.84,11.82612337]
[1755789095570,0.06,183.91,183.85,11.79612337]
[1755789095571,3.90163567,183.88,183.85,11.79612337]
[1755789095799,0.06,183.91,183.86,0.66]
[1755789095976,11.13612337,183.88,183.84,0.03]
[1755789096177,3.90310742,183.87,183.84,0.03]
[1755789096495,11.13612337,183.88,183.84,0.69]
[1755789096698,3.90446776,183.87,183.84,0.69]
[1755789096898,11.13612337,183.88,183.84,0.69]
[1755789097194,11.13612337,183.85,183.84,0.03]
[1755789097397,3.90574839,183.85,183.84,0.69]
[1755789097692,28.63746577,183.85,183.84,0.03]
[1755789099886,15.04187176,183.85,183.84,0.03]
[1755789100269,15.0510985,183.85,183.84,0.03]
[1755789100659,15.05532712,183.85,183.84,0.03]
[1755789101164,15.05532712,183.85,183.84,0.69]
[1755789101378,3.91920375,183.85,183.84,0.69]
[1755789101568,3.91920375,183.85,183.84,11.82612337]
[1755789101768,3.19920375,183.85,183.84,11.82612337]
[1755789102067,0.06,183.91,183.84,17.26555023]
[1755789102368,0.06,183.91,183.89,11.13612337]
[1755789102592,0.06,183.91,183.88,11.13612337]
[1755789102793,11.13612337,183.89,183.85,0.66]
[1755789103088,11.19612337,183.91,183.86,11.79612337]
[1755789103471,11.13612337,183.9,183.84,0.03]
[1755789103673,11.13612337,183.86,183.84,0.03]
[1755789103883,11.13612337,183.88,183.85,0.66]
[1755789104064,11.13612337,183.87,183.84,0.03]
[1755789104391,11.13612337,183.88,183.84,0.03]
[1755789104690,11.13612337,183.9,183.85,11.79612337]
[1755789104880,0.06,183.91,183.87,11.13612337]
[1755789105189,11.19612337,183.91,183.88,4.04048396]
[1755789105394,11.19612337,183.91,183.89,4.04048396]
[1755789105577,11.19612337,183.91,183.9,4.04048396]
[1755789105984,0.06,183.91,183.9,0.66]
[1755789106185,0.06,183.91,183.87,0.66]
[1755789106368,11.19612337,183.91,183.86,11.13612337]
[1755789106572,11.13612337,183.9,183.84,0.69]
[1755789106974,11.13612337,183.9,183.85,11.13612337]
[1755789107170,11.13612337,183.89,183.84,11.82612337]
[1755789107391,0.06,183.91,183.85,0.71]
[1755789107692,11.19612337,183.91,183.87,11.13612337]
[1755789107891,0.06,183.91,183.87,11.84612337]
[1755789108094,0.06,183.91,183.87,0.71]
[1755789108095,11.19612337,183.91,183.87,0.71]
[1755789108394,11.19612337,183.91,183.86,11.13612337]
[1755789108596,11.19612337,183.91,183.87,0.71]
[1755789108898,0.06,183.91,183.9,11.13612337]
[1755789109193,0.06,183.91,183.9,11.84612337]
[1755789109397,0.06,183.91,183.84,5.46936789]
[1755789109597,0.06,183.91,183.89,11.13612337]
[1755789109773,0.06,183.91,183.88,11.84612337]
[1755789110091,0.06,183.91,183.88,11.13612337]
[1755789110399,11.13612337,183.9,183.85,0.71]
[1755789110697,0.77,183.91,183.84,0.03]
[1755789110698,11.13612337,183.86,183.84,0.03]
[1755789110910,26.77,183.89,183.84,0.03]
[1755789111118,11.13612337,183.86,183.84,0.03]
[1755789111317,11.13612337,183.85,183.84,0.03]
[1755789111480,26.0,183.88,183.84,0.03]
[1755789111820,26.0,183.88,183.84,0.74]
[1755789111986,11.13612337,183.88,183.84,0.74]
[1755789112180,26.06,183.89,183.84,0.03]
[1755789112181,11.13612337,183.85,183.84,0.03]
[1755789112500,26.06,183.89,183.84,0.03]
[1755789112501,11.13612337,183.86,183.84,0.03]
[1755789112705,26.0,183.88,183.84,0.03]
[1755789112884,26.0,183.88,183.84,0.74]
[1755789113214,11.19612337,183.89,183.84,11.87612337]
[1755789113386,11.19612337,183.89,183.85,0.71]
[1755789113706,11.13612337,183.88,183.84,0.03]
[1755789114011,11.13612337,183.88,183.84,11.16612337]
[1755789114221,11.19612337,183.89,183.84,11.87612337]
[1755789114380,11.84612337,183.88,183.84,0.03]
[1755789114783,11.19612337,183.89,183.84,11.16612337]
[1755789115009,11.90612337,183.89,183.84,0.03]
[1755789115525,0.71,183.88,183.84,0.03]
[1755789115722,11.13612337,183.86,183.84,0.03]
[1755789116084,11.13612337,183.87,183.84,0.03]
[1755789116424,26.0,183.87,183.84,0.03]
[1755789116588,11.84612337,183.85,183.84,0.03]
[1755789118442,34.01931088,183.85,183.84,0.03]
[1755789119856,47.61490489,183.85,183.84,0.03]
[1755789120446,33.30931088,183.85,183.84,0.03]
[1755789120647,26.0,183.85,183.84,0.03]
[1755789120810,33.30931088,183.85,183.84,0.03]
[1755789121011,26.0,183.85,183.84,0.03]
[1755789121243,34.01931088,183.85,183.84,0.03]
[1755789121455,7.30931088,183.86,183.84,0.03]
[1755789121627,8.01931088,183.85,183.84,0.03]
[1755789121944,47.61490489,183.85,183.84,0.03]
[1755789122164,7.30931088,183.85,183.84,0.03]
[1755789122530,0.71,183.88,183.84,0.03]
[1755789122738,33.30931088,183.86,183.84,0.03]
[1755789122933,7.30931088,183.85,183.84,0.03]
[1755789123134,47.61490489,183.85,183.84,0.03]
[1755789123664,46.90490489,183.85,183.84,0.03]
[1755789123829,7.30931088,183.85,183.84,0.03]
[1755789124464,7.30931088,183.87,183.84,0.74]
[1755789124634,7.36931088,183.89,183.84,7.33931088]
[1755789124838,7.30931088,183.88,183.84,0.03]
[1755789125034,7.30931088,183.88,183.84,0.74]
[1755789125442,0.06,183.89,183.85,8.01931088]
[1755789125635,7.30931088,183.87,183.84,0.03]
[1755789126252,7.30931088,183.85,183.84,0.03]
[1755789127967,7.30931088,183.87,183.84,0.03]
[1755789128133,7.30931088,183.88,183.84,0.74]
[1755789128341,7.30931088,183.87,183.84,0.74]
[1755789128661,45.3,183.89,183.85,0.71]
[1755789128839,0.06,183.89,183.86,8.01931088]
[1755789129035,0.06,183.89,183.87,7.30931088]
[1755789129233,0.06,183.89,183.88,0.71]
[1755789129842,0.06,183.89,183.84,5.46949113]
[1755789129843,7.36931088,183.89,183.85,0.71]
[1755789130069,7.36931088,183.89,183.84,7.33931088]
[1755789130246,0.06,183.89,183.86,0.71]
[1755789130449,7.30931088,183.87,183.84,0.03]
[1755789130644,0.06,183.89,183.84,0.03]
[1755789130645,7.30931088,183.85,183.84,0.03]
[1755789130838,0.06,183.89,183.84,0.74]
[1755789131071,7.36931088,183.89,183.85,0.71]
[1755789131260,7.36931088,183.89,183.84,7.33931088]
[1755789131261,0.06,183.89,183.86,0.71]
[1755789131568,7.30931088,183.87,183.84,0.03]
[1755789131765,7.30931088,183.86,183.84,0.03]
[1755789132270,7.30931088,183.87,183.84,0.03]
[1755789132448,7.30931088,183.88,183.84,0.03]
[1755789132843,0.77,183.89,183.84,0.03]
[1755789133244,0.71,183.88,183.84,0.03]
[1755789133660,8.01931088,183.88,183.84,0.03]
[1755789134156,7.30931088,183.87,183.84,0.03]
[1755789134346,7.30931088,183.86,183.84,0.03]
[1755789134873,34.01931088,183.87,183.84,0.03]
[1755789135044,7.30931088,183.86,183.84,0.03]
[1755789135450,8.01931088,183.87,183.84,0.03]
[1755789135654,0.06,183.89,183.86,7.30931088]
[1755789135871,7.36931088,183.89,183.84,0.03]
[1755789136065,7.36931088,183.89,183.84,7.33931088]
[1755789136277,0.06,183.89,183.88,7.30931088]
[1755789136453,0.06,183.89,183.88,8.01931088]
[1755789137375,0.06,183.89,183.88,0.71]
[1755789137674,0.06,183.89,183.88,8.01931088]
[1755789138043,0.06,183.89,183.88,87.81931088]
[1755789138274,0.06,183.91,183.89,5.4380336]
[1755789138474,0.06,183.91,183.89,6.1180336]
[1755789138680,0.06,183.91,183.9,7.98931088]
[1755789139154,0.06,183.95,183.9,41.29862176]
[1755789139354,0.06,183.95,183.92,14.61862176]
[1755789139853,0.06,183.95,183.94,7.30931088]
[1755789140362,0.06,183.95,183.94,7.98931088]
[1755789140772,0.06,183.95,183.94,7.30931088]
[1755789141282,0.06,183.95,183.94,7.98931088]
[1755789141954,0.06,183.95,183.94,7.30931088]
[1755789142154,0.06,183.95,183.92,0.68]
[1755789142461,0.06,183.95,183.94,12.74586627]
[1755789142658,0.06,183.95,183.94,7.30931088]
[1755789142872,0.06,183.95,183.91,45.2]
[1755789143075,0.06,183.95,183.94,7.30931088]
[1755789143251,0.78,183.95,183.9,79.8]
[1755789143575,7.30931088,183.93,183.89,45.24]
[1755789143888,26.0,183.86,183.85,7.309311]
[1755789144091,47.62490489,183.86,183.85,6.589311]
[1755789144384,13.59559401,183.85,183.84,0.03]
[1755789144584,13.59559401,183.77,183.68,0.68]
[1755789144746,13.59559401,183.77,183.63,0.68]
[1755789144747,7.30931088,183.71,183.63,0.68]
[1755789144951,52.52931088,183.81,183.63,0.68]
[1755789144952,7.30931088,183.81,183.7,7.30931088]
[1755789145151,7.30931088,183.73,183.67,0.68]
[1755789145362,13.59559401,183.7,183.61,0.68]
[1755789145671,20.90490489,183.65,183.52,7.309311]
[1755789145976,0.66,183.66,183.59,7.30931088]
[1755789146174,7.30931088,183.69,183.63,7.30931088]